fUSD/lending_fUSD_20240628
["ID","MTS","AMOUNT","RATE_DAILY","PERIOD"]
[330512253,1719541854013,-1213.03,0.00021917,3]
[330512254,1719541854027,-1136.44686868,0.00021917,3]
[330512255,1719541854040,-2869.97313132,0.00021917,3]
[330512256,1719541854050,-500.0,0.00021917,3]
[330512257,1719541854059,-856.63,0.00021917,3]
[330512258,1719541854070,-954.59,0.00021917,3]
[330512259,1719541854080,-573.51,0.00021917,3]
[330512260,1719541854089,-252.17418882,0.00021917,3]
[330512261,1719541854102,-528.47581118,0.00021917,3]
[330512262,1719541854113,-500.0,0.00021917,3]
[330512263,1719541854122,-1251.44,0.00021917,3]
[330512264,1719541854132,-500.0,0.00021917,3]
[330512265,1719541854142,-522.44,0.00021917,3]
[330512266,1719541854151,-500.0,0.00021917,3]
[330512267,1719541854160,-352.74060008,0.00021917,3]
[330512268,1719541854245,-235.30745469,0.00018899,2]
[330512269,1719541854255,-438.36333626,0.00019997,2]
[330512270,1719541854265,-202.68466362,0.00021917,3]
[330512271,1719541855400,-1270.37297567,0.00018717,2]
[330512272,1719541855410,-1339.58435903,0.00020084,2]
[330512273,1719541856341,-205.32564097,0.00020084,2]
[330512274,1719541856350,-45.32212022,0.0002072,2]
[330512275,1719541856885,1203.80520125,0.00013999,2]
[330512276,1719541857548,-289.37452135,0.00018825,2]
[330512277,1719541857558,-289.37452135,0.00018854,2]
[330512278,1719541857574,-289.37452135,0.00018854,2]
[330512279,1719541857585,-289.37452135,0.00018889,2]
[330512280,1719541857596,-289.37452135,0.00018909,2]
[330512281,1719541857607,-289.37452135,0.00018909,2]
[330512282,1719541857619,-244.69366257,0.00018909,2]
[330512283,1719541857632,-44.68085878,0.00018909,2]
[330512284,1719541857643,-3000.0,0.0002069,2]
[330512285,1719541857652,-598.16934168,0.0002072,2]
[330512286,1719541858044,-289.37452135,0.0001899,2]
[330512287,1719541858054,-289.37452135,0.00019171,2]
[330512288,1719541858064,-1039.8485381,0.0002072,2]
[330512289,1719541858074,-448.686,0.0002072,2]
[330512290,1719541858083,-1544.91,0.00020828,2]
[330512291,1719541858092,-161.14039916,0.000209,2]
[330512292,1719541858106,-1544.91,0.0002099,2]
[330512293,1719541858116,-1544.91,0.0002099,2]
[330512294,1719541858126,-1544.91,0.0002099,2]
[330512295,1719541858135,-1544.91,0.0002099,2]
[330512296,1719541858144,-1544.91,0.0002099,2]
[330512297,1719541858154,-1544.91,0.0002099,2]
[330512298,1719541858163,-1544.91,0.0002099,2]
[330512299,1719541858173,-1544.91,0.0002099,2]
[330512300,1719541858183,-629.6147363,0.00021917,3]
[330512301,1719541858194,-500.0,0.00021917,3]
[330512302,1719541858203,-500.0,0.00021917,3]
[330512303,1719541858213,-1640.02,0.00021917,3]
[330512304,1719541858222,-500.0,0.00021917,3]
[330512305,1719541858232,-3785.41,0.00021917,3]
[330512306,1719541858242,-813.0,0.00021917,3]
[330512307,1719541858251,-3471.97,0.00021917,3]
[330512308,1719541858261,-2603.79,0.00021917,3]
[330512309,1719541858272,-500.0,0.00021917,3]
[330512310,1719541858281,-500.0,0.00021917,3]
[330512311,1719541858293,-1071.7,0.00021917,3]
[330512312,1719541858302,-2049.93,0.00021917,3]
[330512313,1719541858312,-500.0,0.00021917,3]
[330512314,1719541858322,-500.0,0.00021917,3]
[330512315,1719541858332,-396.07971677,0.00021917,3]
[330512316,1719541858342,-511.17,0.00021917,3]
[330512317,1719541858352,-585.43,0.00021917,3]
[330512318,1719541858363,-500.0,0.00021917,3]
[330512319,1719541858372,-796.04,0.00021917,3]
[330512320,1719541858381,-500.0,0.00021917,3]
[330512321,1719541858391,-500.0,0.00021917,3]
[330512322,1719541858402,-1258.06,0.00021917,3]
[330512323,1719541858411,-3495.92,0.00021917,3]
[330512324,1719541858422,-500.0,0.00021917,3]
[330512325,1719541858432,-1567.95,0.00021917,3]
[330512326,1719541858442,-500.0,0.00021917,3]
[330512327,1719541858452,-507.08,0.00021917,3]
[330512328,1719541858462,-2694.6,0.00021917,3]
[330512329,1719541858473,-942.77,0.00021917,3]
[330512330,1719541858483,-1288.55056936,0.00021917,3]
[330512331,1719541858499,-1717.218,0.00021917,3]
[330512332,1719541858512,-607.97134023,0.00021917,3]
[330512334,1719542024071,2521092.37052679,0.00014,2]
[330512335,1719542048112,-300.0,0.00013999,2]
[330512336,1719542107369,-300.0,0.00013999,2]
[330512337,1719542112872,300.0,0.00013999,2]
[330512338,1719542115924,-502.53680083,0.00013999,2]
[330512339,1719542117654,-749.50834699,0.00013999,2]
[330512340,1719542118727,-621.48884955,0.00013999,2]
[330512341,1719542200686,-151.52933245,0.00013,2]
[330512342,1719542211397,-576.98181801,0.00013999,2]
[330512343,1719542212793,-685.3792876,0.00013999,2]
[330512371,1719542909451,3072.15423039,0.00011199,2]
[330512372,1719542920446,3072.15423039,0.00011199,2]
[330512373,1719542938324,25262.993392,0.00011199,2]
[330512384,1719542979884,332.99511729,0.00011199,2]
[330512385,1719542991549,1366.31409354,0.00011199,2]
[330512386,1719542997551,290.46265469,0.00011199,2]
[330512387,1719543017366,287.97863386,0.00011199,2]
[330512388,1719543028732,20312.51943268,0.00011199,2]
[330512395,1719543032751,-154.72848574,0.000126,2]
[330512397,1719543032760,-2527.54781829,0.00013574,2]
[330512399,1719543032772,-427.34999358,0.00013574,2]
[330512401,1719543032784,-343.4955451,0.00013574,2]
[330512403,1719543032795,-363.40445475,0.00013574,2]
[330512405,1719543032807,-423.02988,0.00013574,2]
[330512406,1719543032819,-3168.35,0.00013574,2]
[330512407,1719543032830,-3264.51941235,0.00013574,2]
[330512408,1719543033034,-8032.89337296,0.00013574,2]
[330512411,1719543038411,-2366.64168768,0.00013574,2]
[330512412,1719543038423,-4345.76122729,0.00013574,2]
[330512413,1719543038433,-155.0,0.00013574,2]
[330512414,1719543038442,-1877.46721545,0.00013759,2]
[330512415,1719543038452,-755.25501588,0.00013849,2]
[330512416,1719543038462,-253.90432169,0.00013899,2]
[330512417,1719543038472,-474.91891764,0.00013899,2]
[330512418,1719543038482,-211.09811471,0.00013899,2]
[330512419,1719543038492,-150.0,0.00013973,2]
[330512420,1719543038501,-300.0,0.00013998,2]
[330512421,1719543038511,-259.55461446,0.00013999,2]
[330512422,1719543038521,-668.78066736,0.00013999,2]
[330512423,1719543038530,-73.50143936,0.00013999,2]
[330512424,1719543038543,-340.06569055,0.00013999,2]
[330512425,1719543038553,-551.53519454,0.00013999,2]
[330512426,1719543038563,-300.91479228,0.00013999,2]
[330512427,1719543038572,-1205.87475497,0.00013999,2]
[330512428,1719543038582,-155.10345692,0.00013999,2]
[330512429,1719543038591,-175.27588464,0.00013999,2]
[330512430,1719543038602,-17872.75102772,0.00014,2]
[330512431,1719543038614,-6904.82972179,0.00014,2]
[330512432,1719543038629,-559.92223982,0.00014,2]
[330512433,1719543038640,-1485.84822745,0.00014,2]
[330512437,1719543038796,-1366.31409354,0.00013574,2]
[330512438,1719543038806,-10125.73075488,0.00014,2]
[330512439,1719543038817,-10312.64728852,0.00014,2]
[330512448,1719543040394,-1382.2,0.00014,2]
[330512449,1719543040474,-1751.0,0.00014,2]
[330512450,1719543040485,-4547.08758781,0.00014,2]
[330512451,1719543040497,-1748.56626615,0.00014,2]
[330512452,1719543040508,-1120.0285415,0.00014,2]
[330512473,1719543043844,-213.35664754,0.00013574,2]
[330512474,1719543043853,-515617.16238402,0.00014,2]
[330512475,1719543043864,-61575.20518034,0.00014,2]
[330512492,1719543046976,-866.58344244,0.00014,2]
[330512493,1719543046987,-53424.40299266,0.00014,2]
[330512494,1719543057896,-300.0,0.00013128,2]
[330512495,1719543058838,-300.0,0.00013128,2]
[330512496,1719543060078,-300.0,0.00013128,2]
[330512497,1719543060970,-502.53680083,0.00013128,2]
[330512498,1719543061808,-300.0,0.00013127,2]
[330512499,1719543061830,-449.50834699,0.00013128,2]
[330512500,1719543062448,-621.48884955,0.00013128,2]
[330512501,1719543063108,-576.98181801,0.00013128,2]
[330512502,1719543064132,-685.3792876,0.00013128,2]
[330512503,1719543326511,-151.52933245,0.00012314,2]
[330512504,1719543326838,-150.79108915,0.00012314,2]
[330512505,1719543562695,168.58,0.0001085,2]
[330512506,1719543563376,21885.44975301,0.00011199,2]
[330512507,1719543631202,668.78066736,0.00011199,2]
[330512508,1719543632810,20312.51943268,0.00011199,2]
[330512509,1719543642456,1366.31409354,0.00011199,2]
[330512510,1719543673197,1366.31409354,0.00011199,2]
[330512511,1719543735288,12284.61014452,0.00011199,2]
[330512512,1719543735676,5381.45376565,0.00011199,2]
[330512513,1719543736199,668.78066736,0.00011199,2]
[330512514,1719543740771,552.57239721,0.00011199,2]
[330512515,1719543743970,1841.31867376,0.00011199,2]
[330512516,1719543785326,200.6439511,0.00011143,2]
[330512517,1719543795545,7708.12404349,0.00011199,2]
[330512518,1719543822423,959.32702903,0.00011199,2]
[330512519,1719543829631,348.43472769,0.00011199,2]
[330512520,1719543877469,1369.7454259,0.00011199,2]
[330512521,1719543912896,959.32702903,0.00011199,2]
[330512522,1719543926953,7574.2955464,0.00011199,2]
[330512523,1719543935225,348.43472769,0.00011199,2]
[330512524,1719543965280,348.43472769,0.00011199,2]
[330512525,1719544005721,693.78279396,0.00011199,2]
[330512526,1719544009495,959.32702903,0.00011199,2]
[330512539,1719544055529,3072.15423039,0.00011199,2]
[330512540,1719544077423,530.86178538,0.00011199,2]
[330512541,1719544081262,348.43472769,0.00011199,2]
[330512542,1719544092920,4481.6858797,0.00011199,2]
[330512543,1719544096996,484.02884584,0.00011199,2]
[330512544,1719544099625,959.32702903,0.00011199,2]
[330512546,1719544117507,277.74016818,0.00011199,2]
[330512547,1719544136963,-553.927529,0.00011842,2]
[330512548,1719544136997,-46.072471,0.00011902,2]
[330512549,1719544142849,878.18948173,0.00011199,2]
[330512550,1719544142872,1982.62704411,0.00011199,2]
[330512560,1719544160239,292.91275832,0.00011199,2]
[330512572,1719544172058,348.43472769,0.00011199,2]
[330512573,1719544187407,263.41362794,0.00011199,2]
[330512574,1719544190873,849.82,0.00011049,2]
[330512575,1719544194026,155.53850452,0.00011199,2]
[330512576,1719544199011,580.91804313,0.00011199,2]
[330512577,1719544200478,165.09,0.00011199,2]
[330512578,1719544201832,256.05925322,0.00011199,2]
[330512579,1719544202917,150.61211635,0.00011199,2]
[330512580,1719544202962,959.32702903,0.00011199,2]
[330512581,1719544213441,543.96475932,0.00011199,2]
[330512586,1719544233204,-2488.32184878,0.00012202,2]
[330512587,1719544233215,-343.3895603,0.00012202,2]
[330512588,1719544233226,-499.2998041,0.00012202,2]
[330512589,1719544233237,-831.66201726,0.00012202,2]
[330512590,1719544233248,-1033.7,0.00012202,2]
[330512591,1719544233259,-772.65407182,0.00012202,2]
[330512592,1719544233268,-1516.61379126,0.00012474,2]
[330512593,1719544233280,-1184.85534718,0.00012474,2]
[330512594,1719544233291,-273.38533675,0.00012474,2]
[330512595,1719544233302,-268.5619315,0.00012474,2]
[330512596,1719544233313,-2725.61089557,0.00012474,2]
[330512597,1719544233323,-442.42941046,0.00012745,2]
[330512598,1719544233405,-0.30023807,0.00012745,2]
[330512599,1719544233416,-2219.9999988,0.00012745,2]
[330512600,1719544233428,-1086.44749763,0.00012745,2]
[330512601,1719544233441,-2219.8501573,0.00012745,2]
[330512602,1719544233451,-300.0,0.00012844,2]
[330512603,1719544233460,-2465.23507695,0.00012845,2]
[330512604,1719544233471,-9198.60492305,0.00012845,2]
[330512605,1719544233480,-261.82,0.00012865,2]
[330512606,1719544233489,-1000.0,0.00012916,2]
[330512607,1719544233499,-1214.6,0.00012966,2]
[330512608,1719544233509,-381.13,0.00013063,2]
[330512610,1719544233518,-250.0,0.00013099,2]
[330512611,1719544233527,-3072.15423039,0.00013128,2]
[330512613,1719544233536,-1931.16,0.00013128,2]
[330512614,1719544233546,-155.34165817,0.00013128,2]
[330512615,1719544233555,-250.0,0.00013131,2]
[330512616,1719544233564,-849.82,0.00013313,2]
[330512617,1719544233573,-1435.65,0.00013369,2]
[330512618,1719544233584,-5784.34985584,0.00013472,2]
[330512619,1719544233594,-269.38352443,0.00013472,2]
[330512620,1719544233603,-155.28352034,0.00013516,2]
[330512621,1719544233612,-189.29649474,0.00013543,2]
[330512622,1719544233621,-298.39636076,0.00013543,2]
[330512623,1719544233631,-616.6920362,0.00013543,2]
[330512624,1719544233640,-599.27979208,0.00013574,2]
[330512625,1719544233649,-348.43472769,0.00013574,2]
[330512626,1719544233658,-232.79014581,0.00013574,2]
[330512627,1719544233668,-217.51,0.0001368,2]
[330512629,1719544233677,-1456.92,0.0001368,2]
[330512631,1719544233687,-1799.33,0.00013699,2]
[330512632,1719544233696,-200.0,0.00013699,2]
[330512633,1719544233705,-295.29,0.00013699,2]
[330512634,1719544233715,-3000.0,0.0001371,2]
[330512635,1719544233725,-660.70344244,0.00013899,2]
[330512636,1719544233735,-160.19074379,0.00013917,2]
[330512637,1719544233745,-14437.34119275,0.00013917,2]
[330512638,1719544233755,-3000.0,0.0001394,2]
[330512639,1719544233764,-1216.65196372,0.00013984,2]
[330512640,1719544233774,-175.48569036,0.0001399,2]
[330512641,1719544233783,-201.95038958,0.00013999,5]
[330512642,1719544233793,-238029.66160486,0.00014,2]
[330512643,1719544233805,-2286.53246622,0.00014,2]
[330512644,1719544234107,-578.5596183,0.00014,2]
[330512645,1719544234119,-2670.35134403,0.00014,2]
[330512646,1719544234130,-1716.95652717,0.00014,2]
[330512650,1719544238669,-959.32702903,0.00013574,2]
[330512651,1719544238909,-50.89164874,0.00014,2]
[330512652,1719544238976,-6347.28912936,0.00014,2]
[330512653,1719544238990,-8993.85900125,0.00014,2]
[330512654,1719544239362,-323.8635894,0.0001399,3]
[330512655,1719544239378,-380.0664106,0.0001399,3]
[330512656,1719544239388,-641.42227234,0.00014,2]
[330512657,1719544239400,-807.17588612,0.00014,2]
[330512658,1719544239412,-2650.1,0.00014,2]
[330512659,1719544239424,-1274.25252714,0.00014,2]
[330512660,1719544239437,-2998.59329399,0.00014,2]
[330512661,1719544239450,-1662.12038026,0.00014,2]
[330512662,1719544239462,-51205.59195658,0.00014,2]
[330512663,1719544240923,-944.60374233,0.00013574,2]
[330512664,1719544240933,-36.41520714,0.00014,2]
[330512665,1719544240945,-94206.91677903,0.00014,2]
[330512666,1719544240957,-2295.80647228,0.00014,2]
[330512683,1719544242787,-992692.05106667,0.00014,2]
[330512684,1719544242796,-420.0,0.00014088,2]
[330512685,1719544242806,-271.41830066,0.0001415,2]
[330512686,1719544242815,-240.99998745,0.0001415,2]
[330512687,1719544242825,-3000.0,0.0001425,2]
[330512688,1719544242834,-180.52618752,0.00014294,2]
[330512689,1719544242847,-295.29,0.00014384,2]
[330512690,1719544242856,-311.82527914,0.00014393,2]
[330512691,1719544242866,-261.82,0.00014473,2]
[330512692,1719544242875,-7438.25184872,0.000145,2]
[330512693,1719544242885,-1000.0,0.0001453,2]
[330512694,1719544242894,-3000.0,0.0001457,2]
[330512695,1719544242903,-14437.34119265,0.00014733,2]
[330512696,1719544242913,-173.57,0.00014796,2]
[330512697,1719544242923,-3000.0,0.0001488,2]
[330512698,1719544242933,-196.60791482,0.000149,2]
[330512699,1719544242943,-204.00209393,0.000149,2]
[330512700,1719544242952,-1216.6519637,0.00014946,2]
[330512701,1719544242962,-1270.37297567,0.00014966,2]
[330512702,1719544242973,-175.48569036,0.0001499,2]
[330512703,1719544242986,-175.48569036,0.0001499,2]
[330512704,1719544242996,-2389273.0458655,0.00015,2]
[330512705,1719544243006,-5000.0,0.00015,2]
[330512706,1719544243016,-3655.43989011,0.00015,2]
[330512707,1719544243026,-230.8514854,0.00015,2]
[330512708,1719544243036,-150.0,0.00015,2]
[330512709,1719544243046,-295.29,0.00015068,2]
[330512710,1719544243058,-3000.0,0.0001519,2]
[330512711,1719544243067,-1628.98358933,0.00015287,2]
[330512712,1719544243076,-1069.82113378,0.00015335,2]
[330512713,1719544243085,-217.51,0.0001539,2]
[330512714,1719544243096,-587.0,0.00015452,2]
[330512715,1719544243106,-1136.94159012,0.00015479,2]
[330512716,1719544243116,-250.0,0.00015548,2]
[330512717,1719544243126,-14437.34119265,0.00015548,2]
[330512718,1719544243137,-849.82,0.00015577,2]
[330512719,1719544243147,-622.59689453,0.00015579,2]
[330512720,1719544243157,-295.29,0.00015753,2]
[330512721,1719544243169,-1216.6519637,0.00015907,2]
[330512722,1719544243180,-2000.0,0.00016,2]
[330512723,1719544243190,-2000.0,0.0001601,2]
[330512724,1719544243201,-2178.602754,0.0001602,2]
[330512725,1719544243211,-261.82,0.00016081,2]
[330512726,1719544243220,-350.0,0.00016096,2]
[330512727,1719544243230,-11752.0,0.000161,5]
[330512728,1719544243239,-1000.0,0.00016145,2]
[330512729,1719544243248,-720.86438453,0.00016315,2]
[330512730,1719544243258,-14437.34119265,0.00016364,2]
[330512731,1719544243268,-183.7,0.00016368,2]
[330512732,1719544243278,-295.29,0.00016438,2]
[330512733,1719544243289,-1757.94329266,0.00016566,2]
[330512734,1719544243298,-450.0,0.00016644,2]
[330512735,1719544243307,-1216.6519637,0.00016869,2]
[330512736,1719544243316,-823.0,0.00016948,2]
[330512737,1719544243325,-2504.78695477,0.00017,2]
[330512738,1719544243335,-217.51,0.00017099,2]
[330512739,1719544243346,-370.78930042,0.00017159,2]
[330512740,1719544243355,-378.6960467,0.00017159,2]
[330512741,1719544243364,-155.11719868,0.00017159,2]
[330512742,1719544243373,-14437.34119265,0.0001718,2]
[330512744,1719544243382,-383.18449794,0.00017192,2]
[330512745,1719544243391,-155.76123069,0.00017199,2]
[330512746,1719544243400,-478.95385051,0.00017199,2]
[330512747,1719544243409,-156.04509343,0.00017199,2]
[330512749,1719544243418,-475.10495739,0.00017199,2]
[330512751,1719544243429,-367.0078146,0.00017253,2]
[330512753,1719544243438,-158.64139204,0.00017253,2]
[330512755,1719544243448,-264.80173529,0.00017253,2]
[330512756,1719544243458,-346.07679139,0.00017253,2]
[330512757,1719544243467,-197.7067058,0.00017253,2]
[330512758,1719544243477,-328.45118823,0.00017257,2]
[330512759,1719544243486,-243.89799269,0.00017257,2]
[330512760,1719544243496,-296.51463104,0.00017566,2]
[330512761,1719544243513,-166.68,0.00017568,2]
[330512762,1719544243527,-261.82,0.00017689,2]
[330512763,1719544243537,-155.0,0.00017703,2]
[330512764,1719544243546,-1000.0,0.00017759,2]
[330512765,1719544243556,-1216.6519637,0.00017831,2]
[330512766,1719544243567,-849.82,0.00017841,2]
[330512767,1719544243577,-810.0,0.00017905,2]
[330512768,1719544243587,-14437.34119265,0.00017996,2]
[330512769,1719544243599,-150.0,0.00018,2]
[330512770,1719544243609,-166.68,0.00018292,2]
[330512771,1719544243619,-250.0,0.00018548,2]
[330512772,1719544243629,-424.0,0.00018589,2]
[330512773,1719544243639,-196.60791481,0.00018633,2]
[330512774,1719544243648,-360.95361939,0.00018764,2]
[330512775,1719544243658,-1216.6519637,0.00018792,2]
[330512776,1719544243668,-217.51,0.00018809,2]
[330512777,1719544243678,-14437.34119265,0.00018811,2]
[330512778,1719544243688,-320.31523991,0.00018938,2]
[330512779,1719544243698,-19777.50786253,0.00018999,2]
[330512780,1719544243708,-482691.13003778,0.00019,2]
[330512781,1719544243718,-155.0,0.00019,2]
[330512782,1719544243728,-166.68,0.00019017,2]
[330512783,1719544243738,-339.34174154,0.00019069,2]
[330512784,1719544243747,-305.3305634,0.00019077,2]
[330512785,1719544243757,-351.44825739,0.00019096,2]
[330512786,1719544243767,-183.7,0.00019096,2]
[330512787,1719544243776,-305.3305634,0.00019177,2]
[330512788,1719544243786,-534.09769114,0.00019178,2]
[330512789,1719544243796,-230.60927358,0.00019178,2]
[330512790,1719544243806,-500.0,0.00019178,2]
[330512791,1719544243816,-163.79960891,0.00019178,2]
[330512792,1719544243825,-1799.33,0.00019178,2]
[330512793,1719544243835,-250.0,0.00019178,2]
[330512794,1719544243845,-171.65,0.0001918,2]
[330512795,1719544243855,-171.65,0.0001918,2]
[330512796,1719544243864,-171.65,0.0001918,2]
[330512797,1719544243874,-171.65,0.0001918,2]
[330512798,1719544243884,-171.65,0.0001918,2]
[330512799,1719544243893,-171.65,0.0001918,2]
[330512800,1719544243904,-171.65,0.0001918,2]
[330512801,1719544243913,-171.65,0.0001918,2]
[330512802,1719544243923,-171.65,0.0001918,2]
[330512803,1719544243934,-171.65,0.0001918,2]
[330512804,1719544243945,-261.82,0.00019298,2]
[330512805,1719544243954,-365.78781787,0.00019352,2]
[330512806,1719544243963,-1000.0,0.00019374,2]
[330512807,1719544243974,-785.939,0.00019433,2]
[330512808,1719544243988,-632.217,0.00019433,2]
[330512809,1719544243998,-532.91398684,0.00019451,2]
[330512810,1719544244010,-14437.34119265,0.00019627,2]
[330512811,1719544244022,-166.68,0.00019742,2]
[330512812,1719544244038,-1216.6519637,0.00019754,2]
[330512813,1719544244048,-320.31523991,0.00019926,2]
[330512814,1719544244059,-1288.01621888,0.0002,2]
[330512815,1719544244070,-2000.0,0.0002,2]
[330512816,1719544244081,-5500.0,0.0002,2]
[330512817,1719544244092,-8999.64333117,0.0002,2]
[330512818,1719544244103,-189.17551275,0.0002,2]
[330512819,1719544244114,-383.70401756,0.0002,2]
[330512820,1719544244124,-181.51537068,0.0002,2]
[330512821,1719544244134,-1000.0,0.0002,2]
[330512822,1719544244143,-2000.0,0.0002001,2]
[330512823,1719544244154,-2000.0,0.0002002,2]
[330512824,1719544244165,-2000.0,0.0002003,2]
[330512825,1719544244176,-2536.707998,0.0002004,2]
[330512826,1719544244186,-849.82,0.00020104,2]
[330512827,1719544244196,-213.0,0.0002022,2]
[330512828,1719544244206,-14437.34119265,0.00020443,2]
[330512829,1719544244216,-166.68,0.00020467,2]
[330512830,1719544244227,-761.34251623,0.000205,2]
[330512831,1719544244239,-159.0508465,0.000205,2]
[330512832,1719544244250,-217.51,0.00020519,2]
[330512833,1719544244261,-213.0,0.0002053,2]
[330512834,1719544244273,-529.0,0.000206,3]
[330512835,1719544244283,-1019.0,0.000206,2]
[330512836,1719544244294,-2149.0,0.000207,3]
[330512837,1719544244305,-1216.6519637,0.00020716,2]
[330512838,1719544244316,-2000.0,0.000208,2]
[330512839,1719544244327,-213.0,0.0002084,2]
[330512840,1719544244338,-222641.886999,0.000209,2]
[330512841,1719544244349,-320.31523991,0.00020914,2]
[330512842,1719544244359,-1001.80104169,0.00020999,2]
[330512843,1719544244369,-1250.0,0.00021,2]
[330512844,1719544244379,-117864.3951228,0.00021,2]
[330512845,1719544244390,-50000.0,0.0002107,2]
[330512846,1719544244400,-213.0,0.0002115,2]
[330512847,1719544244410,-14437.34119265,0.00021259,2]
[330512848,1719544244420,-213.0,0.0002145,2]
[330512849,1719544244431,-152.0,0.00021466,3]
[330512850,1719544244442,-4126.96938198,0.0002147,2]
[330512851,1719544244452,-150.0,0.00021538,2]
[330512852,1719544244462,-150.0,0.00021563,2]
[330512853,1719544244472,-33440.39,0.00021574,6]
[330512854,1719544244481,-24500.47,0.00021574,6]
[330512855,1719544244491,-5646.79,0.00021574,6]
[330512856,1719544244501,-150.0,0.00021587,2]
[330512857,1719544244511,-150.0,0.00021592,2]
[330512858,1719544244521,-177.37053917,0.000216,2]
[330512859,1719544244531,-150.0,0.00021602,2]
[330512860,1719544244545,-338.0,0.0002161,3]
[330512861,1719544244555,-25000.0,0.00021612,2]
[330512862,1719544244567,-157.32524,0.00021612,2]
[330512863,1719544244577,-151.0,0.00021612,2]
[330512864,1719544244588,-151.0,0.00021612,2]
[330512865,1719544244599,-151.0,0.00021612,2]
[330512866,1719544244610,-151.0,0.00021612,2]
[330512867,1719544244620,-150.0,0.00021616,2]
[330512868,1719544244630,-161.87,0.00021644,2]
[330512869,1719544244640,-157.18,0.00021644,2]
[330512870,1719544244651,-175.9,0.00021644,2]
[330512871,1719544244661,-155.27,0.00021644,2]
[330512872,1719544244671,-150.0,0.00021645,2]
[330512873,1719544244682,-150.0,0.00021666,2]
[330512874,1719544244692,-150.0,0.00021673,2]
[330512875,1719544244702,-1216.6519637,0.00021677,2]
[330512876,1719544244712,-150.0,0.00021701,2]
[330512877,1719544244723,-150.0,0.00021722,2]
[330512878,1719544244733,-500.0,0.00021741,2]
[330512879,1719544244744,-200.0,0.00021741,2]
[330512880,1719544244754,-500.0,0.00021742,2]
[330512881,1719544244765,-500.0,0.00021742,2]
[330512882,1719544244777,-200.0,0.00021742,2]
[330512883,1719544244788,-213.0,0.0002176,2]
[330512884,1719544244800,-150.0,0.00021763,2]
[330512885,1719544244812,-150.0,0.00021763,2]
[330512886,1719544244823,-150.0,0.0002178,2]
[330512887,1719544244835,-150.0,0.00021782,2]
[330512888,1719544244845,-1000.0,0.00021805,2]
[330512889,1719544244855,-150.0,0.00021821,2]
[330512890,1719544244865,-183.7,0.00021824,2]
[330512891,1719544244876,-251.10640624,0.0002183,2]
[330512892,1719544244887,-888.0908278,0.00021849,2]
[330512893,1719544244897,-12749.19467156,0.00021864,3]
[330512894,1719544244907,-6010.56448306,0.00021891,7]
[330512895,1719544244917,-206.85028102,0.00021897,4]
[330512896,1719544244928,-47480.72078416,0.000219,2]
[330512897,1719544244938,-490.0,0.000219,4]
[330512898,1719544244948,-150.0,0.000219,2]
[330512899,1719544244959,-257.0,0.000219,2]
[330512900,1719544244970,-358.6,0.000219,3]
[330512901,1719544244984,-151.0,0.000219,2]
[330512902,1719544244994,-2505.780926,0.000219,2]
[330512903,1719544245004,-320.31523991,0.00021902,2]
[330512904,1719544245014,-43987.9528003,0.00021905,2]
[330512906,1719544245026,-15140.0238466,0.00021905,2]
[330512908,1719544245036,-2208.3346904,0.00021905,2]
[330512909,1719544245047,-1455.3261481,0.00021905,2]
[330512910,1719544245058,-5506.0042929,0.00021905,2]
[330512911,1719544245068,-1981.4895606,0.00021905,2]
[330512912,1719544245079,-151.0,0.00021905,2]
[330512913,1719544245090,-151.0,0.00021905,2]
[330512914,1719544245100,-151.0,0.00021905,2]
[330512915,1719544245111,-151.0,0.00021905,2]
[330512916,1719544245121,-8681.00163766,0.00021912,2]
[330512917,1719544245132,-6274.87852259,0.00021916,2]